[Event "WYCC U14 Open 2019"]
[Site "Mumbai"]
[Date "2019.10.07"]
[Round "7.2"]
[White "Pranav Anand"]
[Black "Srihari L R"]
[Result "0-1"]
[ECO "D08"]
[WhiteElo "2351"]
[BlackElo "2283"]
[Annotator "ChessBase"]
[PlyCount "80"]
[EventDate "2019.10.02"]
[EventType "swiss"]
[EventCountry "IND"]
[SourceTitle "playchess.com"]
[Source "ChessBase"]
[SourceQuality "1"]
[TimeControl "40/5400+30:1800+30"]

1. d4 {[%emt 0:00:00]} d5 {[%emt 0:00:00]} 2. c4 {[%emt 0:00:00]} e5 {[%emt 0:00:10]} 3. dxe5 {[%emt 0:00:00]} d4 {[%emt 0:00:05]} 4. Nf3 {[%emt 0:00:00]} Nc6 {[%emt 0:00:06]} 5. a3 {[%emt 0:00:03]} Nge7 {[%emt 0:00:20]} 6. Nbd2 {[%emt 0:01:39]} Be6 {[%emt 0:15:42]} 7. Nb3 {[%emt 0:12:15]} Nf5 {[%emt 0:01:21]} 8. Qd3 {[%emt 0:17:57]} a5 {[%emt 0:05:38]} 9. g4 {[%emt 0:12:44]} Nh4 {[%emt 0:01:24]} 10. Nfxd4 {[%emt 0:00:27]} a4 {[%emt 0:25:27]} 11. Nxe6 {[%emt 0:04:23]} fxe6 {[%emt 0:00:27]} 12. Qxd8+ {[%emt 0:21:36]} Rxd8 {[%emt 0:00:02]} 13. Bg5 Be7 {[%emt 0:00:03]} 14. Bxe7 {[%emt 0:01:15]} Kxe7 {[%emt 0:00:01]} 15. Nd2 {[%emt 0:00:14]} Nxe5 {[%emt 0:07:35]} 16. h3 {[%emt 0:00:54]} Rhf8 {[%emt 0:01:08]} 17. Rd1 {[%emt 0:10:00]} Rd4 {[%emt 0:04:00]} 18. Rg1 {[%emt 0:08:55]} Rfd8 {[%emt 0:02:26]} 19. Rg3 {[%emt 0:00:24]} Nxc4 {[%emt 0:00:52]} 20. Rd3 {[%emt 0:00:26]} Rxd3 {[%emt 0:00:21]} 21. exd3 {[%emt 0:00:05]} Nxb2 {[%emt 0:01:01]} 22. Rc1 {[%emt 0:01:04]} Nxd3+ {[%emt 0:00:41]} 23. Bxd3 {[%emt 0:00:07]} Rxd3 {[%emt 0:00:18]} 24. Rxc7+ {[%emt 0:00:10]} Kf6 {[%emt 0:09:42]} 25. Rxb7 {[%emt 0:06:14]} Rxa3 {[%emt 0:01:37]} 26. Ne4+ {[%emt 0:01:27]} Ke5 {[%emt 0:00:51]} 27. Ng3 {[%emt 0:00:38]} Nf3+ {[%emt 0:02:05]} 28. Kf1 {[%emt 0:00:20]} Ra1+ {[%emt 0:00:46]} 29. Ke2 {[%emt 0:00:27]} Nd4+ {[%emt 0:00:34]} 30. Kd3 {[%emt 0:00:21]} a3 {[%emt 0:01:58]} 31. Ra7 {[%emt 0:00:41]} a2 {[%emt 0:02:20]} 32. Ra5+ {[%emt 0:00:06]} Kf4 {[%emt 0:02:13]} 33. Ne2+ {[%emt 0:01:03]} Nxe2 {[%emt 0:00:13]} 34. Kxe2 {[%emt 0:00:06]} e5 {[%emt 0:00:35]} 35. Ra7 {[%emt 0:00:51]} g6 {[%emt 0:00:32]} 36. Rf7+ {[%emt 0:00:20]} Kg5 {[%emt 0:00:21]} 37. Ra7 {[%emt 0:00:28]} e4 {[%emt 0:00:10]} 38. Ra4 {[%emt 0:00:34]} h6 {[%emt 0:00:47]} 39. Ra5+ {[%emt 0:00:13]} Kh4 {[%emt 0:00:22]} 40. Ra3 {[%emt 0:00:09]} e3 {[%emt 0:00:11]} 0-1

[Event "WYCC U14 Open 2019"]
[Site "Mumbai"]
[Date "2019.10.07"]
[Round "7.4"]
[White "Morgunov, Marc"]
[Black "Samant Aditya S"]
[Result "1-0"]
[ECO "B51"]
[WhiteElo "2280"]
[BlackElo "2334"]
[Annotator "ChessBase"]
[PlyCount "87"]
[EventDate "2019.10.02"]
[EventType "swiss"]
[EventCountry "IND"]
[SourceTitle "playchess.com"]
[Source "ChessBase"]
[SourceQuality "1"]
[TimeControl "40/5400+30:1800+30"]

1. e4 {[%emt 0:00:00]} c5 {[%emt 0:00:00]} 2. Nf3 {[%emt 0:00:00]} d6 {[%emt 0:00:00]} 3. Bb5+ {[%emt 0:00:00]} Nd7 {[%emt 0:00:00]} 4. O-O {[%emt 0:00:00]} a6 {[%emt 0:00:00]} 5. Bd3 {[%emt 0:00:55]} Ngf6 {[%emt 0:00:33]} 6. Re1 {[%emt 0:00:41]} b5 {[%emt 0:00:44]} 7. c3 {[%emt 0:00:37]} Bb7 {[%emt 0:00:23]} 8. Bc2 {[%emt 0:01:25]} Qc7 {[%emt 0:00:37]} 9. a4 {[%emt 0:14:36]} b4 {[%emt 0:00:59]} 10. d3 {[%emt 0:03:49]} a5 {[%emt 0:08:47]} 11. Nbd2 {[%emt 0:07:13]} g6 {[%emt 0:06:09]} 12. Bb3 {[%emt 0:06:25]} Bg7 {[%emt 0:21:07]} 13. d4 {[%emt 0:09:29]} e6 {[%emt 0:12:57]} 14. d5 {[%emt 0:18:37]} e5 {[%emt 0:00:44]} 15. Bc4 {[%emt 0:03:18]} O-O {[%emt 0:00:23]} 16. Bd3 {[%emt 0:01:20]} Nb6 {[%emt 0:08:47]} 17. c4 {[%emt 0:00:52]} Nc8 {[%emt 0:00:59]} 18. b3 {[%emt 0:02:21]} Ne7 {[%emt 0:00:27]} 19. Ra2 {[%emt 0:01:07]} h6 {[%emt 0:00:52]} 20. Nf1 {[%emt 0:01:50]} Bc8 {[%emt 0:05:13]} 21. h3 {[%emt 0:04:34]} Bd7 {[%emt 0:05:35]} 22. N3h2 {[%emt 0:03:15]} Rae8 {[%emt 0:04:37]} 23. Ng3 {[%emt 0:02:34]} Bc8 {[%emt 0:05:24]} 24. Bb1 {[%emt 0:01:47]} Kh8 {[%emt 0:08:35]} 25. h4 {[%emt 0:04:47]} h5 {[%emt 0:00:51]} 26. Bd3 {[%emt 0:00:33]} Ng4 {[%emt 0:01:05]} 27. Nxg4 {[%emt 0:00:53]} Bxg4 {[%emt 0:00:31]} 28. f3 {[%emt 0:03:19]} Bc8 {[%emt 0:01:05]} 29. f4 {[%emt 0:03:18]} Bg4 {[%emt 0:03:03]} 30. Be2 {[%emt 0:01:15]} Bxe2 {[%emt 0:03:08]} 31. Raxe2 {[%emt 0:00:13]} f5 {[%emt 0:01:13]} 32. exf5 {[%emt 0:00:40]} Nxf5 {[%emt 0:00:04]} 33. Nxf5 {[%emt 0:00:02]} Rxf5 {[%emt 0:00:08]} 34. fxe5 {[%emt 0:00:53]} Rfxe5 {[%emt 0:00:05]} 35. Bf4 {[%emt 0:01:26]} Rxe2 {[%emt 0:00:14]} 36. Rxe2 {[%emt 0:00:05]} Re7 {[%emt 0:01:52]} 37. Qe1 {[%emt 0:01:43]} Bd4+ {[%emt 0:00:37]} 38. Kh2 {[%emt 0:00:44]} Rxe2 {[%emt 0:00:31]} 39. Qxe2 {[%emt 0:00:05]} Qd8 {[%emt 0:00:22]} 40. g3 {[%emt 0:00:45]} Qd7 {[%emt 0:00:35]} 41. Qe6 {[%emt 0:31:09]} Qg7 {[%emt 0:05:15]} 42. Qxd6 {[%emt 0:00:00]} Qf7 {[%emt 0:05:17]} 43. Qd8+ {[%emt 0:00:00]} Kh7 {[%emt 0:00:06]} 44. Qc7 {[%emt 0:00:00]} 1-0

[Event "WYCC U14 Open 2019"]
[Site "Mumbai"]
[Date "2019.10.07"]
[Round "7.5"]
[White "Luczak, Filip"]
[Black "Chyzy, Jakub"]
[Result "1/2-1/2"]
[ECO "A05"]
[WhiteElo "2136"]
[BlackElo "2327"]
[Annotator "ChessBase"]
[PlyCount "91"]
[EventDate "2019.10.02"]
[EventType "swiss"]
[EventCountry "IND"]
[SourceTitle "playchess.com"]
[Source "ChessBase"]
[SourceQuality "1"]
[TimeControl "40/5400+30:1800+30"]

1. Nf3 {[%emt 0:00:00]} Nf6 {[%emt 0:00:00]} 2. g3 {[%emt 0:00:00]} d5 {[%emt 0:00:00]} 3. Bg2 {[%emt 0:00:10]} Bf5 {[%emt 0:00:00]} 4. O-O {[%emt 0:00:11]} e6 {[%emt 0:00:00]} 5. d3 {[%emt 0:00:04]} Be7 {[%emt 0:00:11]} 6. Nbd2 {[%emt 0:00:24]} O-O {[%emt 0:00:13]} 7. Qe1 {[%emt 0:03:14]} h6 {[%emt 0:00:10]} 8. e4 {[%emt 0:01:14]} Bh7 {[%emt 0:00:06]} 9. Qe2 {[%emt 0:00:16]} c5 {[%emt 0:00:07]} 10. Ne5 {[%emt 0:05:49]} Qc7 {[%emt 0:00:16]} 11. Ng4 {[%emt 0:03:06]} Nxg4 {[%emt 0:14:04]} 12. Qxg4 dxe4 {[%emt 0:00:32]} 13. dxe4 {[%emt 0:01:25]} Nc6 {[%emt 0:00:26]} 14. c3 {[%emt 0:25:01]} Ne5 {[%emt 0:07:28]} 15. Qe2 {[%emt 0:00:27]} c4 {[%emt 0:02:37]} 16. Nf3 {[%emt 0:09:15]} Nd3 {[%emt 0:12:14]} 17. Nd4 {[%emt 0:03:39]} e5 {[%emt 0:05:25]} 18. Nf5 {[%emt 0:03:15]} Bxf5 {[%emt 0:05:16]} 19. exf5 {[%emt 0:00:45]} Rad8 {[%emt 0:00:08]} 20. Be3 {[%emt 0:03:42]} Rd7 {[%emt 0:09:48]} 21. Qg4 {[%emt 0:05:31]} Kh8 {[%emt 0:15:05]} 22. f6 {[%emt 0:05:29]} Bxf6 {[%emt 0:00:03]} 23. Bxa7 {[%emt 0:03:27]} g6 {[%emt 0:05:29]} 24. Bb6 {[%emt 0:02:59]} Qc8 {[%emt 0:03:13]} 25. Bh3 {[%emt 0:03:59]} Qc6 {[%emt 0:01:53]} 26. Qxd7 {[%emt 0:03:09]} Qxb6 {[%emt 0:00:02]} 27. Bg2 {[%emt 0:03:50]} Qxb2 {[%emt 0:01:00]} 28. Qxb7 {[%emt 0:00:17]} Qxc3 {[%emt 0:00:08]} 29. a4 {[%emt 0:00:32]} Nxf2 {[%emt 0:10:15]} 30. Rac1 {[%emt 0:07:51]} Qd2 {[%emt 0:01:20]} 31. Rxc4 {[%emt 0:02:21]} Bg5 {[%emt 0:07:19]} 32. Qb4 {[%emt 0:01:28]} Qxb4 {[%emt 0:00:38]} 33. Rxb4 {[%emt 0:00:04]} Nd3 {[%emt 0:00:09]} 34. Re4 {[%emt 0:01:07]} f5 {[%emt 0:00:46]} 35. Re2 {[%emt 0:01:23]} Rc8 {[%emt 0:00:34]} 36. Bb7 {[%emt 0:01:20]} Rc5 {[%emt 0:00:27]} 37. h4 {[%emt 0:00:59]} Nc1 {[%emt 0:00:35]} 38. Ree1 {[%emt 0:00:32]} Bd2 {[%emt 0:00:19]} 39. Rd1 {[%emt 0:00:04]} Be3+ {[%emt 0:00:30]} 40. Kh1 {[%emt 0:00:13]} Ne2 {[%emt 0:00:33]} 41. Rf3 {[%emt 0:16:22]} f4 {[%emt 0:10:17]} 42. Re1 {[%emt 0:01:33]} Nd4 {[%emt 0:03:15]} 43. Rfxe3 {[%emt 0:01:32]} fxe3 {[%emt 0:01:10]} 44. Rxe3 {[%emt 0:00:10]} Rc1+ {[%emt 0:12:44]} 45. Kg2 {[%emt 0:02:12]} Ra1 {[%emt 0:00:11]} 46. Rxe5 {[%emt 0:05:01]} 1/2-1/2

[Event "WYCC U14 Open 2019"]
[Site "Mumbai"]
[Date "2019.10.07"]
[Round "7.6"]
[White "Vo, Pham Thien Phuc"]
[Black "Pranav Vijay"]
[Result "1-0"]
[ECO "A40"]
[WhiteElo "1807"]
[BlackElo "2265"]
[Annotator "ChessBase"]
[PlyCount "123"]
[EventDate "2019.10.02"]
[EventType "swiss"]
[EventCountry "IND"]
[SourceTitle "playchess.com"]
[Source "ChessBase"]
[SourceQuality "1"]
[TimeControl "40/5400+30:1800+30"]

1. d4 {[%emt 0:00:00]} Nf6 {[%emt 0:00:00]} 2. c4 {[%emt 0:00:00]} e6 {[%emt 0:00:00]} 3. g3 {[%emt 0:00:00]} Bb4+ {[%emt 0:01:34]} 4. Bd2 {[%emt 0:00:00]} a5 {[%emt 0:01:12]} 5. Bg2 {[%emt 0:00:06]} O-O {[%emt 0:00:41]} 6. Nf3 {[%emt 0:00:13]} d6 {[%emt 0:00:56]} 7. O-O {[%emt 0:01:01]} Bxd2 {[%emt 0:00:15]} 8. Qxd2 {[%emt 0:01:53]} Nbd7 {[%emt 0:01:29]} 9. Nc3 {[%emt 0:00:24]} Re8 {[%emt 0:01:27]} 10. e4 {[%emt 0:09:28]} e5 {[%emt 0:01:01]} 11. d5 {[%emt 0:00:31]} Nc5 {[%emt 0:01:25]} 12. Ne1 {[%emt 0:00:50]} c6 {[%emt 0:08:54]} 13. Nd3 {[%emt 0:08:19]} Nxd3 {[%emt 0:00:31]} 14. Qxd3 {[%emt 0:00:04]} cxd5 {[%emt 0:00:09]} 15. Nxd5 {[%emt 0:01:31]} Nxd5 {[%emt 0:00:08]} 16. cxd5 {[%emt 0:05:21]} Bd7 {[%emt 0:04:17]} 17. Rfc1 {[%emt 0:01:51]} b5 {[%emt 0:02:56]} 18. Rc2 {[%emt 0:05:00]} Qb6 {[%emt 0:17:08]} 19. Rac1 {[%emt 0:01:10]} Ra7 {[%emt 0:00:10]} 20. Qe3 {[%emt 0:03:37]} Qb8 {[%emt 0:01:54]} 21. h4 {[%emt 0:02:07]} h6 {[%emt 0:00:43]} 22. Kh2 {[%emt 0:00:12]} Rb7 {[%emt 0:03:08]} 23. Bh3 {[%emt 0:09:02]} Qd8 {[%emt 0:03:07]} 24. Bxd7 {[%emt 0:01:54]} Qxd7 {[%emt 0:00:09]} 25. Rc6 {[%emt 0:06:59]} Rd8 {[%emt 0:00:39]} 26. Qf3 {[%emt 0:01:00]} Qe7 {[%emt 0:01:32]} 27. Kg2 {[%emt 0:00:41]} g6 {[%emt 0:02:48]} 28. Qg4 {[%emt 0:02:31]} Kg7 {[%emt 0:01:38]} 29. h5 {[%emt 0:01:37]} a4 30. Rh1 {[%emt 0:05:18]} Qf6 {[%emt 0:05:34]} 31. Rhc1 {[%emt 0:03:07]} Qe7 {[%emt 0:00:37]} 32. R1c3 {[%emt 0:01:43]} b4 {[%emt 0:03:29]} 33. R3c4 {[%emt 0:00:21]} Rf8 {[%emt 0:03:05]} 34. Ra6 {[%emt 0:02:28]} a3 {[%emt 0:01:02]} 35. bxa3 {[%emt 0:03:22]} bxa3 {[%emt 0:00:52]} 36. Rxa3 {[%emt 0:00:25]} Rb2 {[%emt 0:01:16]} 37. Rac3 {[%emt 0:11:55]} Rb7 {[%emt 0:05:15]} 38. a4 {[%emt 0:00:42]} Ra8 {[%emt 0:01:34]} 39. Ra3 {[%emt 0:04:16]} Rba7 {[%emt 0:01:45]} 40. hxg6 {[%emt 0:01:17]} fxg6 {[%emt 0:00:13]} 41. Rc8 {[%emt 0:35:49]} h5 {[%emt 0:32:19]} 42. Qh3 {[%emt 0:00:01]} Rxc8 {[%emt 0:03:58]} 43. Qxc8 {[%emt 0:00:02]} Rc7 {[%emt 0:00:12]} 44. Qa6 Ra7 {[%emt 0:00:00]} 45. Qb6 {[%emt 0:00:00]} Rb7 {[%emt 0:00:00]} 46. Qe3 {[%emt 0:00:00]} Ra7 {[%emt 0:00:00]} 47. a5 {[%emt 0:00:00]} Ra6 {[%emt 0:00:00]} 48. Qc3 {[%emt 0:00:00]} Qa7 {[%emt 0:00:00]} 49. Qc8 {[%emt 0:00:00]} Rxa5 {[%emt 0:00:00]} 50. Rxa5 {[%emt 0:00:00]} Qxa5 {[%emt 0:00:00]} 51. Qd7+ {[%emt 0:00:00]} Kh6 {[%emt 0:00:00]} 52. Qxd6 {[%emt 0:00:00]} Qc3 {[%emt 0:00:00]} 53. Qf8+ {[%emt 0:00:00]} Kh7 {[%emt 0:00:00]} 54. d6 {[%emt 0:00:00]} Qd4 {[%emt 0:00:00]} 55. Qf7+ {[%emt 0:00:00]} Kh8 {[%emt 0:00:00]} 56. Qd5 {[%emt 0:00:00]} Qb6 {[%emt 0:00:00]} 57. d7 {[%emt 0:00:00]} Qd8 {[%emt 0:00:00]} 58. Qf7 {[%emt 0:00:00]} h4 {[%emt 0:00:00]} 59. Qe8+ {[%emt 0:00:00]} Kh7 {[%emt 0:00:00]} 60. Qxd8 {[%emt 0:00:00]} Kg7 {[%emt 0:00:00]} 61. Qe7+ {[%emt 0:00:00]} Kg8 {[%emt 0:00:00]} 62. d8=Q# {[%emt 0:00:00]} 1-0

[Event "WYCC U14 Open 2019"]
[Site "Mumbai"]
[Date "2019.10.07"]
[Round "7.8"]
[White "Wu, Logan"]
[Black "Aaryan Varshney"]
[Result "1-0"]
[ECO "B90"]
[WhiteElo "1994"]
[BlackElo "2239"]
[Annotator "ChessBase"]
[PlyCount "113"]
[EventDate "2019.10.02"]
[EventType "swiss"]
[EventCountry "IND"]
[SourceTitle "playchess.com"]
[Source "ChessBase"]
[SourceQuality "1"]
[TimeControl "40/5400+30:1800+30"]

1. e4 {[%emt 0:00:00]} c5 {[%emt 0:00:00]} 2. Nf3 {[%emt 0:00:00]} d6 {[%emt 0:00:00]} 3. d4 {[%emt 0:00:00]} cxd4 {[%emt 0:00:05]} 4. Nxd4 {[%emt 0:00:07]} Nf6 {[%emt 0:00:09]} 5. Nc3 {[%emt 0:00:04]} a6 {[%emt 0:00:16]} 6. f3 {[%emt 0:00:22]} e5 {[%emt 0:00:09]} 7. Nb3 {[%emt 0:00:06]} Be6 {[%emt 0:00:21]} 8. Be3 {[%emt 0:00:05]} Be7 {[%emt 0:00:06]} 9. Qd2 {[%emt 0:00:05]} O-O {[%emt 0:00:17]} 10. O-O-O {[%emt 0:00:29]} Nbd7 {[%emt 0:00:24]} 11. g4 {[%emt 0:00:13]} b5 {[%emt 0:00:10]} 12. Rg1 {[%emt 0:00:07]} b4 {[%emt 0:00:58]} 13. Nd5 {[%emt 0:00:06]} Bxd5 {[%emt 0:01:00]} 14. exd5 {[%emt 0:00:05]} Nb6 {[%emt 0:01:56]} 15. Na5 {[%emt 0:00:17]} Nfxd5 {[%emt 0:01:19]} 16. Nc6 {[%emt 0:00:16]} Qc7 {[%emt 0:01:28]} 17. Nxe7+ {[%emt 0:00:07]} Qxe7 {[%emt 0:00:30]} 18. Bxb6 {[%emt 0:00:06]} Nxb6 {[%emt 0:00:29]} 19. Qxd6 {[%emt 0:00:07]} Qg5+ {[%emt 0:00:31]} 20. Qd2 {[%emt 0:00:09]} Qxd2+ {[%emt 0:01:51]} 21. Rxd2 {[%emt 0:00:07]} Rfd8 {[%emt 0:00:52]} 22. Rxd8+ {[%emt 0:09:03]} Rxd8 {[%emt 0:00:07]} 23. Bxa6 {[%emt 0:02:12]} Ra8 {[%emt 0:01:51]} 24. Rd1 {[%emt 0:00:25]} Kf8 {[%emt 0:02:59]} 25. Bb5 {[%emt 0:02:43]} Ra5 {[%emt 0:05:00]} 26. Be2 {[%emt 0:20:04]} Ke7 {[%emt 0:17:19]} 27. Kb1 {[%emt 0:01:33]} Nd5 {[%emt 0:01:11]} 28. Bd3 {[%emt 0:05:21]} Nf4 {[%emt 0:11:24]} 29. Bc4 {[%emt 0:02:23]} Rc5 {[%emt 0:02:58]} 30. b3 {[%emt 0:01:32]} h5 {[%emt 0:07:27]} 31. gxh5 {[%emt 0:02:27]} Nxh5 {[%emt 0:00:29]} 32. Kb2 {[%emt 0:02:12]} f5 {[%emt 0:00:42]} 33. c3 {[%emt 0:01:39]} bxc3+ {[%emt 0:00:32]} 34. Kxc3 {[%emt 0:00:02]} Nf4 {[%emt 0:00:49]} 35. a4 {[%emt 0:02:43]} Rc7 {[%emt 0:02:06]} 36. Kb4 {[%emt 0:03:12]} Rb7+ {[%emt 0:06:42]} 37. Kc5 {[%emt 0:02:44]} Ne6+ {[%emt 0:01:39]} 38. Bxe6 {[%emt 0:17:23]} Kxe6 {[%emt 0:00:14]} 39. b4 {[%emt 0:02:30]} Rc7+ {[%emt 0:01:33]} 40. Kb6 {[%emt 0:02:26]} Rc4 {[%emt 0:02:07]} 41. Rb1 {[%emt 0:37:14]} Rc3 {[%emt 0:39:05]} 42. a5 {[%emt 0:03:38]} Rxf3 {[%emt 0:01:40]} 43. a6 {[%emt 0:00:00]} Ra3 {[%emt 0:00:00]} 44. a7 {[%emt 0:00:00]} f4 {[%emt 0:00:00]} 45. Kb7 {[%emt 0:00:00]} e4 {[%emt 0:00:00]} 46. a8=Q {[%emt 0:00:00]} Rxa8 {[%emt 0:00:00]} 47. Kxa8 {[%emt 0:00:00]} f3 {[%emt 0:00:00]} 48. b5 {[%emt 0:00:00]} e3 {[%emt 0:00:00]} 49. b6 {[%emt 0:00:00]} f2 {[%emt 0:00:00]} 50. b7 {[%emt 0:00:00]} e2 {[%emt 0:00:00]} 51. b8=Q {[%emt 0:00:00]} f1=Q {[%emt 0:00:00]} 52. Qb6+ {[%emt 0:00:00]} Ke7 {[%emt 0:00:00]} 53. Qb7+ {[%emt 0:00:00]} Kf8 {[%emt 0:00:00]} 54. Qb4+ {[%emt 0:00:00]} Kg8 {[%emt 0:00:00]} 55. Qc4+ {[%emt 0:00:00]} Kh7 {[%emt 0:00:00]} 56. Rxf1 {[%emt 0:00:00]} exf1=Q {[%emt 0:00:00]} 57. Qxf1 {[%emt 0:00:00]} 1-0

[Event "WYCC U14 Open 2019"]
[Site "Mumbai"]
[Date "2019.10.07"]
[Round "7.9"]
[White "Amanzhol, Sultan"]
[Black "Flores Quillas, Diego Saul Rodri"]
[Result "0-1"]
[ECO "A60"]
[WhiteElo "2032"]
[BlackElo "2164"]
[Annotator "ChessBase"]
[PlyCount "112"]
[EventDate "2019.10.02"]
[EventType "swiss"]
[EventCountry "IND"]
[SourceTitle "playchess.com"]
[Source "ChessBase"]
[SourceQuality "1"]
[TimeControl "40/5400+30:1800+30"]

1. d4 Nf6 2. c4 c5 3. d5 e6 4. Nf3 exd5 5. cxd5 d6 6. e4 g6 7. h3 Bg7 8. Bd3 O-O 9. O-O Re8 10. Nbd2 Na6 11. Re1 Nc7 12. a4 b6 13. Nc4 Ba6 14. Qc2 Bxc4 15. Bxc4 Nd7 16. Bg5 Bf6 17. Bf4 Qe7 18. Bb5 Nxb5 19. axb5 Ne5 20. Nd2 Qd7 21. Bxe5 Bxe5 22. Qb3 Re7 23. Ra4 Rae8 24. Rea1 Bf4 25. Nf1 Rxe4 26. Rxa7 Qf5 27. Rb7 R8e7 28. Rxb6 Re2 29. Qf3 Qe5 30. Rb8+ Kg7 31. b6 Rxb2 32. Ra4 Rb1 33. Qd3 Rb2 34. g3 Bd2 35. Kg2 Be1 36. Rf4 Re2 37. Ra8 Qb2 38. Ra7 Rxf2+ 39. Kh1 Rfe2 40. b7 R2e5 41. Qa6 Re2 42. b8=Q Qxb8 43. Qa1+ R7e5 44. Rfxf7+ Kh6 45. Rxh7+ Kg5 46. Ra4 Bb4 47. Qc1+ Bd2 48. Nxd2 Re1+ 49. Kg2 Rxc1 50. Rf4 Re2+ 51. Kf3 Rc3+ 52. Kxe2 Rxg3 53. Rhh4 Qb2 54. Rhg4+ Rxg4 55. Rxg4+ Kh6 56. Re4 Qb7 0-1

[Event "WYCC U14 Open 2019"]
[Site "Mumbai"]
[Date "2019.10.07"]
[Round "7.10"]
[White "Kolay, Alex"]
[Black "Sun, Jiajun B"]
[Result "1-0"]
[ECO "D52"]
[WhiteElo "2164"]
[BlackElo "1977"]
[Annotator "ChessBase"]
[PlyCount "80"]
[EventDate "2019.10.02"]
[EventType "swiss"]
[EventCountry "IND"]
[SourceTitle "playchess.com"]
[Source "ChessBase"]
[SourceQuality "1"]
[TimeControl "40/5400+30:1800+30"]

1. d4 {[%emt 0:00:00]} Nf6 {[%emt 0:00:00]} 2. c4 {[%emt 0:00:00]} e6 {[%emt 0:00:00]} 3. Nf3 {[%emt 0:00:00]} d5 {[%emt 0:00:00]} 4. Nc3 {[%emt 0:00:00]} c6 {[%emt 0:00:21]} 5. Bg5 {[%emt 0:00:02]} Nbd7 {[%emt 0:00:14]} 6. e3 {[%emt 0:00:16]} Be7 {[%emt 0:00:17]} 7. Qc2 {[%emt 0:00:12]} O-O {[%emt 0:00:55]} 8. Rd1 {[%emt 0:00:15]} h6 {[%emt 0:02:15]} 9. Bh4 {[%emt 0:00:22]} b6 {[%emt 0:09:46]} 10. Bd3 {[%emt 0:04:24]} Bb7 {[%emt 0:00:54]} 11. O-O {[%emt 0:01:57]} Re8 {[%emt 0:00:53]} 12. Qe2 {[%emt 0:03:59]} dxc4 {[%emt 0:03:39]} 13. Bxc4 {[%emt 0:00:12]} b5 {[%emt 0:05:32]} 14. Bd3 {[%emt 0:06:59]} b4 {[%emt 0:01:21]} 15. Ne4 {[%emt 0:05:05]} Nxe4 {[%emt 0:01:39]} 16. Bxe7 {[%emt 0:00:08]} Qxe7 {[%emt 0:00:44]} 17. Bxe4 {[%emt 0:00:09]} Nf6 {[%emt 0:00:03]} 18. Bb1 {[%emt 0:02:59]} c5 {[%emt 0:00:21]} 19. dxc5 {[%emt 0:14:37]} Qxc5 {[%emt 0:00:06]} 20. Rc1 {[%emt 0:00:24]} Qb6 {[%emt 0:02:13]} 21. Rfd1 {[%emt 0:10:58]} Rad8 {[%emt 0:00:40]} 22. h3 {[%emt 0:01:11]} Ba8 {[%emt 0:07:29]} 23. Bd3 {[%emt 0:06:15]} Qa5 {[%emt 0:09:01]} 24. Bb5 {[%emt 0:04:21]} Rxd1+ {[%emt 0:00:46]} 25. Rxd1 {[%emt 0:00:07]} Rc8 {[%emt 0:00:56]} 26. Ba6 {[%emt 0:08:29]} Rc5 {[%emt 0:02:32]} 27. Bc4 {[%emt 0:03:08]} Bd5 {[%emt 0:13:49]} 28. Bxd5 {[%emt 0:02:02]} Rxd5 {[%emt 0:01:08]} 29. Rxd5 {[%emt 0:01:00]} Qxd5 {[%emt 0:00:07]} 30. Qa6 {[%emt 0:00:28]} Qc5 {[%emt 0:00:11]} 31. Qb7 {[%emt 0:11:30]} Qc1+ {[%emt 0:00:42]} 32. Kh2 {[%emt 0:00:04]} Qxb2 {[%emt 0:00:04]} 33. Qxa7 {[%emt 0:05:37]} Qxf2 {[%emt 0:02:41]} 34. Qb8+ {[%emt 0:01:53]} Kh7 {[%emt 0:00:11]} 35. Qxb4 {[%emt 0:00:04]} Qxa2 36. Qb7 {[%emt 0:07:05]} Qe2 {[%emt 0:13:11]} 37. Qb1+ {[%emt 0:00:35]} Kh8 {[%emt 0:03:27]} 38. Qb8+ {[%emt 0:00:02]} Kh7 {[%emt 0:05:32]} 39. Qb1+ {[%emt 0:00:05]} Kh8 {[%emt 0:02:55]} 40. Qb8+ {[%emt 0:00:04]} Kh7 {[%emt 0:03:03]} 1-0

[Event "WYCC U14 Open 2019"]
[Site "Mumbai"]
[Date "2019.10.07"]
[Round "7.12"]
[White "Shah Jeet"]
[Black "Pham, Khoi"]
[Result "1-0"]
[ECO "B87"]
[WhiteElo "1844"]
[BlackElo "2121"]
[Annotator "ChessBase"]
[PlyCount "73"]
[EventDate "2019.10.02"]
[EventType "swiss"]
[EventCountry "IND"]
[SourceTitle "playchess.com"]
[Source "ChessBase"]
[SourceQuality "1"]
[TimeControl "40/5400+30:1800+30"]

1. e4 {[%emt 0:00:00]} c5 {[%emt 0:00:00]} 2. Nf3 {[%emt 0:00:00]} d6 {[%emt 0:00:00]} 3. d4 {[%emt 0:00:00]} cxd4 {[%emt 0:00:00]} 4. Nxd4 {[%emt 0:00:00]} Nf6 {[%emt 0:00:02]} 5. Nc3 {[%emt 0:00:00]} a6 {[%emt 0:00:10]} 6. Bc4 {[%emt 0:00:01]} e6 {[%emt 0:00:10]} 7. Bb3 {[%emt 0:00:04]} b5 {[%emt 0:00:19]} 8. Bg5 {[%emt 0:02:05]} Be7 {[%emt 0:01:40]} 9. Qf3 {[%emt 0:01:25]} Qc7 {[%emt 0:06:08]} 10. e5 {[%emt 0:00:50]} Bb7 {[%emt 0:01:22]} 11. exd6 {[%emt 0:00:05]} Bxd6 {[%emt 0:01:23]} 12. Qe3 {[%emt 0:00:07]} Nbd7 {[%emt 0:15:59]} 13. O-O-O {[%emt 0:21:13]} Be7 {[%emt 0:07:40]} 14. Bxe6 {[%emt 0:11:31]} fxe6 {[%emt 0:03:11]} 15. Nxe6 {[%emt 0:00:07]} Qe5 {[%emt 0:02:46]} 16. Qh3 {[%emt 0:03:28]} Nc5 {[%emt 0:17:01]} 17. Rhe1 {[%emt 0:12:05]} Nfe4 {[%emt 0:07:36]} 18. Nxe4 {[%emt 0:07:21]} Bxe4 {[%emt 0:01:50]} 19. Bxe7 {[%emt 0:05:22]} Nxe6 {[%emt 0:09:07]} 20. Qh4 {[%emt 0:01:06]} g5 {[%emt 0:07:26]} 21. Qxe4 {[%emt 0:01:32]} Qxe4 {[%emt 0:00:31]} 22. Rxe4 {[%emt 0:00:02]} Kxe7 {[%emt 0:00:08]} 23. Rde1 {[%emt 0:00:03]} Ra7 {[%emt 0:00:34]} 24. Rxe6+ {[%emt 0:00:16]} Kf7 {[%emt 0:00:05]} 25. R6e5 {[%emt 0:02:26]} h6 {[%emt 0:01:41]} 26. Rd5 {[%emt 0:03:01]} Rc8 {[%emt 0:00:38]} 27. Rd6 {[%emt 0:02:02]} Kg7 {[%emt 0:01:54]} 28. Red1 {[%emt 0:04:37]} Rcc7 {[%emt 0:00:19]} 29. R1d3 {[%emt 0:02:58]} Rf7 {[%emt 0:00:48]} 30. f3 {[%emt 0:00:58]} Rfe7 {[%emt 0:00:41]} 31. Kd2 {[%emt 0:00:28]} a5 {[%emt 0:01:01]} 32. Re3 {[%emt 0:01:30]} Rec7 {[%emt 0:01:01]} 33. Ree6 Rc5 {[%emt 0:00:57]} 34. Rg6+ {[%emt 0:01:37]} Kf7 {[%emt 0:00:28]} 35. Rxh6 {[%emt 0:00:06]} Ra8 {[%emt 0:01:03]} 36. Rh7+ {[%emt 0:07:43]} Kg8 {[%emt 0:00:34]} 37. Rhd7 {[%emt 0:00:04]} 1-0